bitfinex-derivatives/quotes_ETHF0:USTF0_20260102
["timestamp","ask_amount","ask_price","bid_price","bid_amount"]
[1767317792991,0.00235452,2999.5,2998.4,0.77708498]
[1767317793187,0.00235452,2999.5,2998.6,0.77708498]
[1767317793386,0.13677086,3000.2,2999.0,0.77708498]
[1767317793692,1.08206066,3000.1,2998.9,0.14227873]
[1767317793991,5.45585584,3000.2,2998.9,0.14227873]
[1767317794194,1.08205586,3000.1,2998.9,0.14227873]
[1767317794384,0.0042005,3000.1,2998.9,0.14571827]
[1767317800302,0.0042005,3000.1,2999.0,0.77708498]
[1767317800495,0.0042005,3000.1,2999.2,0.77708498]
[1767317800695,0.0042005,3000.1,2999.2,0.91936371]
[1767317800901,0.0042005,3000.1,2999.6,0.77708498]
[1767317801098,0.0029975,3000.2,2999.4,0.77708498]
[1767317801602,0.78008248,3000.2,2998.9,0.14571827]
[1767317801801,0.78008248,3000.2,2998.9,0.92280325]
[1767317802001,0.0065898,3000.2,2998.9,0.92280325]
[1767317802401,0.0065898,3000.2,2999.1,0.91936371]
[1767317803311,0.0065898,3000.2,2999.3,0.77708498]
[1767317804398,0.0065898,3000.2,2999.4,0.14227873]
[1767317805100,0.0065898,3000.2,2999.0,0.91936371]
[1767317805808,0.0065898,3000.2,2999.0,0.14227873]
[1767317806008,0.0065898,3000.2,2999.0,0.91936371]
[1767317806499,0.0065898,3000.2,2999.4,0.77708498]
[1767317806708,0.0065898,3000.2,2999.4,0.91936371]
[1767317806904,0.0065898,3000.2,2999.5,0.14227873]
[1767317807213,4.70683,3000.8,2999.7,0.77708498]
[1767317807415,4.70683,3000.8,2999.5,0.91936371]
[1767317807611,4.84060336,3000.8,2999.5,0.91936371]
[1767317808016,0.0049975,3000.5,2999.8,0.0029975]
[1767317808211,0.0049975,3000.5,3000.0,0.77708498]
[1767317808513,0.0013801,3000.5,3000.0,0.91936371]
[1767317809013,0.00353946,3000.8,3000.1,0.14227873]
[1767317809711,0.00253946,3000.8,3000.1,0.14227873]
[1767317809918,0.00753696,3000.8,3000.1,0.14227873]
[1767317812723,0.77708498,3000.5,2999.8,0.0029975]
[1767317813218,0.77708498,3000.5,2999.2,0.92077065]
[1767317814114,0.77708498,3000.5,2999.6,0.0049975]
[1767317815514,0.77708498,3000.3,2999.6,0.0049975]
[1767317816716,0.77708498,3000.1,2998.9,0.00343954]
[1767317817214,0.92056942,3000.3,2998.9,0.9163026]
[1767317823020,0.77708498,3000.3,2999.2,0.13577808]
[1767317823221,0.77708498,3000.5,2999.2,0.13577808]
[1767317823726,0.77708498,3000.3,2998.9,0.78052452]
[1767317823925,0.77708498,3000.1,2998.9,0.00343954]
[1767317825426,0.77608498,3000.1,2998.9,0.00343954]
[1767317825731,0.77708498,2999.9,2998.9,0.00343954]
[1767317826528,0.14348444,3000.2,2998.9,0.00343954]
[1767317832533,4.548,3000.4,2998.9,0.13921762]
[1767317832733,1.07719761,3000.3,2998.9,0.13921762]
[1767317832937,4.69148444,3000.4,2998.9,0.13921762]
[1767317833128,1.07717593,3000.3,2998.9,0.13921762]
[1767317833436,4.69148444,3000.4,2998.9,0.13921762]
[1767317833637,1.07706978,3000.3,2998.9,0.13921762]
[1767317833933,4.69148444,3000.4,2998.9,0.13921762]
[1767317834332,0.14348444,3000.4,2998.9,0.13921762]
[1767317834934,0.14248444,3000.4,2998.9,0.13921762]
[1767317837739,0.16685,3000.5,2998.9,0.13921762]
[1767317837934,0.1510214,3000.8,2998.9,0.13921762]
[1767317838134,1.07699161,3000.7,2998.9,0.13921762]
[1767317838343,0.1510214,3000.8,2998.9,0.13921762]
[1767317838643,1.07705004,3000.7,2998.9,0.13921762]
[1767317838843,0.1510214,3000.8,2998.9,0.13921762]
[1767317839140,1.22052735,3000.7,2998.9,0.13921762]
[1767317839342,0.14348444,3000.6,2998.9,0.13921762]
[1767317840332,0.14348444,3000.1,2998.9,0.00343954]
[1767317840538,0.14348444,2999.8,2998.9,0.00343954]
[1767317843144,0.14348444,3000.2,2998.9,0.00343954]
[1767317843442,1.22088677,3000.1,2998.9,0.00343954]
[1767317843643,0.14348444,3000.1,2998.9,0.00343954]
[1767317845347,1.21081375,3000.0,2998.9,0.00343954]
[1767317845648,0.1333896,3000.0,2998.9,0.00343954]
[1767317851550,0.16686,3000.3,2998.9,0.00343954]
[1767317851846,0.52854377,3000.7,2999.0,0.13310647]
[1767317852053,0.1333896,3000.5,2999.0,0.13310647]
[1767317858860,0.1323896,3000.5,2999.0,0.13310647]
[1767317859061,0.1323896,3000.5,2998.9,0.00343954]
[1767317859360,0.77729495,3000.5,2998.9,0.00343954]
[1767317859959,0.56199417,3000.7,2998.9,0.00343954]
[1767317860147,1.07680289,3000.6,2998.9,0.00343954]
[1767317860354,1.07680289,3000.5,2998.9,0.00343954]
[1767317860660,0.56199417,3000.7,2998.9,0.00343954]
[1767317860862,0.1333896,3000.5,2998.9,0.00343954]
[1767317866880,0.91068455,3000.5,2998.9,0.00343954]
[1767317867079,0.1333896,3000.3,2998.9,0.00343954]
[1767317868375,0.1333896,3000.1,2998.9,0.00343954]
[1767317873293,0.1333896,2999.9,2998.9,0.00343954]
[1767317876691,0.1333896,2999.9,2998.2,0.13310647]
[1767317876886,0.77729495,2999.7,2997.8,0.13439607]
[1767317877091,0.0049975,2999.0,2997.8,0.13439607]
[1767317877685,0.0049975,2999.0,2997.8,0.13722601]
[1767317881497,0.31293754,2999.9,2997.9,0.13439607]
[1767317882498,0.0049975,2999.2,2998.6,0.0049975]
[1767317889206,4.72405754,3000.3,2998.9,0.77738359]
[1767317889406,0.92344113,3000.3,2999.1,0.77738359]
[1767317889906,0.92344113,3000.3,2998.9,0.77738359]
[1767317890299,0.0049975,2999.9,2998.9,0.77738359]
[1767317891209,0.0049975,2999.9,2999.1,0.77738359]
[1767317895001,0.0049975,2999.9,2999.2,0.13439607]
[1767317895606,0.0049975,2999.9,2999.3,0.77738359]
[1767317895811,0.54121171,3000.7,2999.7,0.77738359]
[1767317896014,0.54121171,3000.7,2999.5,0.77738359]
[1767317896809,0.0049975,3000.4,2999.3,0.91177966]
[1767317900205,0.0049975,3000.4,2999.4,0.13439607]
[1767317900404,0.0049975,3000.4,2999.5,0.77738359]
[1767317900809,0.0049975,3000.4,2999.5,0.91177966]
[1767317903708,0.0049975,3000.4,2999.7,0.77738359]
[1767317907221,0.0049975,3000.4,2999.5,0.13439607]
[1767317907423,0.0049975,3000.4,2999.7,0.77738359]
[1767317909327,0.0039975,3000.4,2999.7,0.77738359]
[1767317911316,0.0039975,3000.4,2999.5,0.91177966]
[1767317915426,0.0029975,3000.4,2999.5,0.91177966]
[1767317917626,0.0029975,3000.4,2999.5,0.13439607]
[1767317928034,0.0029975,3000.4,2999.5,0.91177966]
[1767317930537,0.39515417,3000.7,2999.8,0.13474904]
[1767317931632,0.0049975,3000.6,2999.8,0.13474904]
[1767317933440,0.0039975,3000.6,2999.8,0.13474904]
[1767317939442,0.0039975,3000.6,2999.8,0.13374904]
[1767317940241,0.0039975,3000.6,3000.1,0.77738359]
[1767317940446,0.39515417,3000.7,3000.1,0.78161923]
[1767317940648,0.39515417,3000.7,3000.1,0.00423564]
[1767317941045,0.39515417,3000.7,2999.9,0.77738359]
[1767317941437,0.0049975,3000.6,2999.9,0.77738359]
[1767317941649,0.0049975,3000.6,3000.0,0.13481888]
[1767317942150,0.0049975,3000.6,3000.2,0.13481888]
[1767317942349,0.13849662,3001.5,3000.3,0.77738359]
[1767317942550,1.22180492,3001.4,3000.3,0.77738359]
[1767317942749,0.13849662,3001.4,3000.3,0.77738359]
[1767317943448,0.00333168,3001.2,3000.5,0.0049975]
[1767317944255,0.00233168,3001.2,3000.5,0.0049975]
[1767317945260,0.1408283,3001.2,3000.5,0.0049975]
[1767317945561,0.1398283,3001.2,3000.5,0.0049975]
[1767317947453,0.1388283,3001.2,3000.5,0.0049975]
[1767317949763,0.1378283,3001.2,3000.5,0.0049975]
[1767317950158,0.1378283,3001.2,3000.0,0.00314107]
[1767317951064,0.0049975,3000.9,3000.3,0.0049975]
[1767317951965,0.13849662,3000.8,3000.3,0.0049975]
[1767317952768,0.13849662,3000.8,3000.0,0.00314107]
[1767317953860,0.13849662,3000.8,3000.1,0.0049975]
[1767317961976,0.13749662,3000.8,3000.1,0.0049975]
[1767317963277,0.13649662,3000.8,3000.1,0.0049975]
[1767317966583,0.13549662,3000.8,3000.1,0.0049975]
[1767317975780,0.0049975,3000.9,3000.1,0.0049975]
[1767317976087,0.0039975,3000.9,3000.1,0.0049975]
[1767317979086,0.0029975,3000.9,3000.1,0.0049975]
[1767317981088,0.13701105,3001.2,3000.1,0.0049975]
[1767317981282,0.13701105,3001.2,3000.1,0.78157561]
[1767317981787,0.13701105,3001.2,3000.1,0.0049975]
[1767317982290,0.0049975,3001.0,3000.1,0.0049975]
[1767317983086,0.0049975,3001.0,3000.1,0.78157561]
[1767317983291,0.00398932,3001.4,3000.5,0.77657811]
[1767317983593,0.00398932,3001.4,3000.1,0.78157561]
[1767317983891,0.00398932,3001.4,3000.1,5.46557561]
[1767317986885,0.00398932,3001.4,3000.1,0.0039975]
[1767317986886,0.14100037,3001.4,3000.1,0.0039975]
[1767317987877,0.14100037,3001.4,3000.1,0.0029975]
[1767317988984,0.13901105,3001.1,3000.1,0.0029975]
[1767317991694,0.13801105,3001.1,3000.1,0.0029975]
[1767317993000,0.13701105,3001.1,3000.1,0.0029975]
[1767317996695,0.13701105,3001.1,3000.1,0.0019975]
[1767317997697,0.14383718,3000.8,3000.1,0.0019975]
[1767318001704,0.001,3000.9,3000.1,0.0019975]
[1767318001900,0.001,3000.9,3000.1,0.0009975]
[1767318002793,0.14383718,3001.2,3000.1,0.0009975]
[1767318004102,0.001,3001.0,3000.1,0.0009975]
[1767318004905,0.14383718,3001.2,3000.1,0.0009975]
[1767318006611,0.14283718,3001.2,3000.1,0.0009975]
[1767318008407,0.00398932,3001.4,3000.3,0.77657811]
[1767318009308,0.00398932,3001.4,3000.1,0.0009975]
[1767318010114,0.00298932,3001.4,3000.1,0.0009975]
[1767318010415,0.14383718,3001.3,3000.1,0.0009975]
[1767318010615,0.14383718,3001.3,3000.4,0.77638176]
[1767318013014,0.14283718,3001.3,3000.4,0.77638176]
[1767318014315,0.14283718,3001.3,3000.6,0.77638176]
[1767318016113,0.14283718,3001.3,3000.3,0.77638176]
[1767318016618,0.14183718,3001.3,3000.3,0.77638176]
[1767318025124,0.14083718,3001.3,3000.3,0.77638176]
[1767318030231,0.00298932,3001.4,3000.3,0.77638176]
[1767318033234,0.00298932,3001.4,3000.3,1.03841033]
[1767318034238,0.00298932,3001.4,3000.6,0.77638176]
[1767318035740,0.14306681,3001.7,3001.0,0.77638176]
[1767318035932,0.14306681,3002.2,3001.0,0.77638176]
[1767318036128,1.21844089,3002.1,3001.0,0.77638176]
[1767318036330,1.07537408,3002.0,3001.0,0.77638176]
[1767318036932,1.07953778,3002.0,3001.0,0.77638176]
[1767318037130,0.0041637,3002.0,3001.0,0.77638176]
[1767318037339,0.0041637,3002.0,3000.8,5.48338176]
[1767318037530,0.14723051,3002.0,3000.8,5.48338176]
[1767318047352,0.14306681,3001.9,3000.8,4.707]
[1767318052754,0.14306681,3001.9,3000.8,5.48338176]
[1767318058257,0.14198502,3001.8,3000.9,4.708]
[1767318063465,0.14198502,3001.8,3000.3,0.13640413]
[1767318063663,0.77638176,3001.5,3000.4,4.707]
[1767318063862,0.77638176,3001.5,3000.5,4.707]
[1767318064263,0.77638176,3001.5,3000.5,4.706]
[1767318065368,0.77638176,3001.5,3000.3,0.13640413]
[1767318065565,0.77638176,3001.5,3000.6,4.708]
[1767318068065,0.77638176,3001.5,3000.6,4.707]
[1767318070459,0.14198502,3001.8,3000.1,0.0009975]
[1767318070868,0.14198502,3001.8,3000.2,4.711]
[1767318074778,0.14198502,3001.8,3000.1,0.0009975]
[1767318074978,0.14198502,3001.8,3000.2,4.71]
[1767318076191,0.14198502,3001.8,3000.1,0.0009975]
[1767318076482,0.14198502,3001.6,3000.1,4.7109975]
[1767318078576,0.14198502,3001.6,3000.1,4.7099975]
[1767318079683,0.00099749,3001.2,3000.5,0.0049975]
[1767318081985,0.14198251,3001.6,3000.5,0.0049975]
[1767318082885,0.14098251,3001.6,3000.5,0.0049975]
[1767318083994,0.0041637,3002.0,3000.5,0.1515954]
[1767318088577,0.0031637,3002.0,3000.5,0.1515954]
[1767318097985,0.13659017,3002.0,3000.5,0.1515954]
[1767318098288,0.13342647,3001.7,3000.5,0.0049975]
[1767318099582,0.13242647,3001.7,3000.5,0.0049975]
[1767318102593,0.0031637,3002.0,3000.5,0.0049975]
[1767318102792,0.0031637,3002.0,3000.5,0.1515954]
[1767318103386,0.0031637,3002.0,3000.5,0.0049975]
[1767318104196,0.77649361,3001.8,3000.5,0.0049975]
[1767318104498,0.13342647,3001.7,3000.5,0.0049975]
[1767318105596,0.13242647,3001.7,3000.5,0.0049975]
[1767318107803,0.13142647,3001.7,3000.5,0.0049975]
[1767318108303,0.77649361,3001.4,3000.5,0.0049975]
[1767318109802,0.90992008,3001.4,3000.5,0.0049975]
[1767318110004,0.13342647,3001.4,3000.5,0.0049975]
[1767318110507,0.13342647,3001.4,3000.5,0.0039975]
[1767318111603,0.00100001,3001.3,3000.5,0.0039975]
[1767318111905,0.00100001,3001.3,3000.5,0.0029975]
[1767318116906,0.00100001,3001.3,3000.5,0.0019975]
[1767318117712,0.00100001,3001.3,3000.5,0.0009975]
[1767318118714,0.00100001,3001.3,3000.0,0.00313857]
[1767318119311,0.00100001,3001.3,3000.0,0.00213857]
[1767318119704,0.00100001,3001.3,3000.3,0.0049975]
[1767318120513,0.00100001,3001.3,3000.3,0.0039975]
[1767318121211,0.0031637,3002.0,3000.3,1.33109648]
[1767318121415,0.0031637,3002.0,3000.4,0.13692716]
[1767318122112,0.0049975,3001.5,3000.4,0.13692716]
[1767318123215,0.0031637,3002.0,3000.4,0.13692716]
[1767318123415,0.0021637,3002.0,3000.4,0.13692716]
[1767318124117,0.0049975,3001.5,3000.4,0.13692716]
[1767318124414,0.0021637,3002.0,3000.4,0.13692716]
[1767318125308,0.0011637,3002.0,3000.4,0.13692716]
[1767318126116,0.0001637,3002.0,3000.4,0.13692716]
[1767318126417,0.0001637,3002.0,3000.7,0.13692716]
[1767318127219,0.13811018,3002.2,3000.7,0.13692716]
[1767318128410,0.14167864,3002.2,3000.7,0.13692716]
[1767318130518,0.77621804,3002.0,3000.7,0.9131452]
[1767318131812,0.91516452,3002.0,3000.4,0.13692716]
[1767318132018,0.91516452,3001.8,3000.4,0.77621804]
[1767318135709,0.91416452,3001.8,3000.4,0.77621804]
[1767318136123,0.77621804,3001.8,3000.4,0.77621804]
[1767318136318,0.77621804,3001.6,3000.3,1.23382162]
[1767318136821,0.77521804,3001.6,3000.3,1.23382162]
[1767318137018,0.00356846,3002.2,3000.3,0.14092466]
[1767318137324,0.00356846,3002.2,3001.0,0.77621804]
[1767318137524,0.7797865,3002.2,3000.8,0.77621804]
[1767318137822,0.13794648,3002.1,3000.8,0.77621804]
[1767318139323,0.13694648,3002.1,3000.8,0.77621804]
[1767318140825,0.13694648,3002.1,3000.4,0.13692716]
[1767318141021,0.13694648,3002.1,3000.7,0.77621804]
[1767318143427,0.13694648,3002.1,3000.7,0.9131452]
[1767318146932,0.13694648,3002.1,3000.9,0.77621804]
[1767318147431,0.7797865,3002.2,3001.1,0.77621804]
[1767318147432,0.00356846,3002.2,3001.1,0.77621804]
[1767318149720,0.77621804,3002.1,3000.7,0.13692716]
[1767318149927,0.14718283,3002.0,3000.8,0.77621804]
[1767318150231,0.14718283,3002.0,3000.5,0.16685]
[1767318150232,0.77621804,3001.9,3000.5,0.16685]
[1767318150433,0.14718283,3002.0,3000.6,0.77621804]
[1767318150730,0.92340087,3002.0,3000.6,0.77621804]
[1767318152347,0.92340087,3002.0,3000.8,0.77621804]
[1767318152348,0.14718283,3002.0,3000.8,0.77621804]
[1767318153546,0.7797865,3002.2,3001.0,0.77621804]
[1767318153745,0.00356846,3002.2,3001.0,0.77621804]
[1767318157646,0.92340087,3002.1,3000.6,0.13980818]
[1767318157852,0.92340087,3001.9,3000.5,0.94306804]
[1767318158054,0.92340087,3001.9,3000.7,0.77621804]
[1767318158350,0.14718283,3001.9,3000.7,0.77621804]
[1767318158757,0.00356846,3002.2,3000.9,0.77621804]
[1767318159262,0.92340087,3001.9,3000.5,0.94306804]
[1767318159449,0.77621804,3002.1,3000.7,0.77621804]
[1767318161248,0.00356846,3002.2,3000.9,0.77621804]
[1767318161457,0.15075129,3002.2,3000.9,0.77621804]
[1767318161754,0.15075129,3002.2,3001.1,0.77621804]
[1767318164756,0.00356846,3002.2,3001.1,0.77621804]
[1767318165060,0.00356846,3002.2,3001.3,0.77621804]
[1767318165255,0.00356846,3002.2,3001.1,0.77621804]
[1767318165652,0.00356846,3002.2,3000.9,0.91602622]
[1767318179859,0.13914463,3002.2,3000.8,0.77621804]
[1767318180163,0.13914463,3002.2,3000.8,0.90994955]
[1767318180462,0.13914463,3002.2,3001.0,0.77621804]
[1767318184563,0.13914463,3002.2,3000.8,0.90994955]
[1767318186266,0.13914463,3002.2,3000.8,0.13373151]
[1767318186458,0.13914463,3002.2,3000.7,0.77621804]
[1767318190468,0.13914463,3002.2,3000.7,0.90994955]
[1767318191560,0.91179421,3002.1,3000.7,0.13373151]
[1767318191868,0.77621804,3001.9,3000.7,4.83773151]
[1767318192065,0.77621804,3001.9,3000.7,4.704]
[1767318192466,0.13557617,3002.1,3000.7,4.704]
[1767318199575,0.13557617,3002.1,3000.5,0.16685]
[1767318217394,0.13557617,3002.1,3000.4,4.707]
[1767318217597,0.13997754,3001.9,3000.4,4.707]
[1767318222803,0.13997754,3001.9,3000.3,0.13772901]
[1767318223014,0.13997754,3001.9,3000.5,4.796]
[1767318234511,0.13897754,3001.9,3000.5,4.796]
[1767318238814,0.2171,3002.0,3000.6,0.13997902]
[1767318245417,1.0651395,3001.9,3000.6,0.13997902]
[1767318245618,0.2171,3002.0,3000.6,0.13997902]
[1767318246223,1.06528397,3001.9,3000.6,0.13997902]
[1767318246517,0.36460112,3002.0,3000.6,0.13997902]
[1767318246722,1.06529569,3001.9,3000.6,0.13997902]
[1767318246911,0.36460112,3002.0,3000.6,0.13997902]
[1767318247107,1.06529569,3001.9,3000.6,0.13997902]
[1767318247312,0.36460112,3002.0,3000.6,0.13997902]
[1767318247512,1.06552297,3001.9,3000.6,0.13997902]
[1767318247712,0.36460112,3002.0,3000.6,0.13997902]
[1767318247912,1.06552297,3001.9,3000.6,0.13997902]
[1767318248112,0.14750112,3002.0,3000.6,0.13997902]
[1767318248314,1.065533,3001.9,3000.6,0.13997902]
[1767318248515,0.14750112,3002.0,3000.6,0.13997902]
[1767318248816,1.06554111,3001.9,3000.6,0.13997902]
[1767318249016,0.14750112,3002.0,3000.6,0.13997902]
[1767318249315,1.06554111,3001.9,3000.6,0.13997902]
[1767318249515,0.14750112,3002.0,3000.6,0.13997902]
[1767318249720,1.06555787,3001.9,3000.6,0.13997902]
[1767318249922,0.14750112,3002.0,3000.6,0.13997902]
[1767318250117,1.06555786,3001.9,3000.6,0.13997902]
[1767318250322,0.14750112,3002.0,3000.6,0.13997902]
[1767318250622,1.06558,3001.9,3000.6,0.13997902]
[1767318250823,0.14750112,3002.0,3000.6,0.13997902]
[1767318251121,1.06558001,3001.9,3000.6,0.13997902]
[1767318251322,0.14750112,3002.0,3000.6,0.13997902]
[1767318251524,1.06560036,3001.9,3000.6,0.13997902]
[1767318251724,0.14750112,3002.0,3000.6,0.13997902]
[1767318251924,1.06566902,3001.9,3000.6,0.13997902]
[1767318252126,0.217,3001.9,3000.6,0.13997902]
[1767318252517,0.77633066,3001.8,3000.6,0.13997902]
[1767318253127,0.77533066,3001.8,3000.6,0.13997902]
[1767318255132,0.77533066,3001.8,3000.5,4.796]
[1767318258129,0.77633066,3001.6,3000.5,4.796]
[1767318258334,0.77633066,3001.4,3000.3,0.0039975]
[1767318258935,0.14750112,3001.5,3000.3,0.0039975]
[1767318267334,0.77633066,3001.4,3000.3,0.0039975]
[1767318270947,0.91798852,3001.4,3000.3,0.0039975]
[1767318278055,0.2171,3001.3,3000.3,0.0039975]
[1767318286754,0.35875786,3001.3,3000.3,0.0039975]
[1767318292160,0.14165786,3001.3,3000.3,0.0039975]
[1767318295062,0.2171,3001.2,3000.3,0.0039975]
[1767318296865,0.36124766,3001.2,3000.3,0.0039975]
[1767318312080,0.14414766,3001.2,3000.3,0.0039975]
[1767318315579,0.36124766,3001.1,3000.3,0.0039975]
[1767318317382,0.14414766,3001.0,3000.0,0.00213857]
[1767318318577,0.14414766,3001.0,3000.2,0.0049975]
[1767318327480,0.2171,3001.1,3000.2,0.0049975]
[1767318327686,0.14188894,3001.4,3000.2,0.78149789]
[1767318327989,0.14188894,3001.4,3000.2,2.00366631]
[1767318328488,0.14188894,3001.4,3000.2,0.78149789]
[1767318331280,0.2171,3001.3,3000.2,0.78149789]
[1767318331486,0.35898894,3001.3,3000.2,0.78149789]
[1767318337404,0.35898894,3001.3,3000.2,0.0049975]
[1767318354422,0.13792162,3001.2,3000.2,0.0049975]
[1767318361526,0.2171,3001.1,3000.2,0.0049975]
[1767318363232,0.35502162,3001.1,3000.2,0.0049975]
[1767318363528,0.13792162,3001.0,3000.2,0.0049975]
[1767318376535,0.13792162,3001.0,3000.4,0.77633865]
[1767318376735,0.13792162,3001.0,3000.5,5.073]
[1767318380837,0.35512162,3000.9,3000.5,5.073]
[1767318388141,0.25805017,3000.9,3000.5,5.073]
[1767318388740,0.12012855,3000.9,3000.5,5.073]
[1767318391045,0.14679616,3001.2,3000.6,0.77633865]
[1767318399944,0.14679616,3002.0,3000.8,0.77633865]
[1767318400144,0.14679616,3002.0,3000.6,0.77633865]
[1767318400344,0.14679616,3001.8,3000.6,0.77633865]
[1767318406938,0.14679616,3001.8,3000.8,0.77633865]
[1767318408351,0.14579616,3001.8,3000.8,0.77633865]
[1767318412251,0.14479616,3001.8,3000.8,0.77633865]
[1767318419259,0.92409476,3002.2,3000.8,0.77633865]
[1767318419461,1.06472795,3002.1,3000.8,0.77633865]
[1767318419654,0.14418765,3002.1,3000.8,0.77633865]
[1767318421458,0.9205263,3002.0,3000.6,0.77633865]
[1767318421754,0.77633865,3001.4,3000.2,0.1718575]
[1767318421959,0.77633865,3001.0,3000.2,0.0049975]
[1767318422256,0.9205263,3000.8,3000.2,0.0049975]
[1767318422456,0.9205263,3000.6,2999.2,7.11539214]
[1767318422653,0.14418765,3000.5,2999.2,12.25939214]
[1767318422854,0.14418765,3000.5,2999.4,0.77633865]
[1767318423454,0.0039975,3000.2,2999.7,0.0049975]
[1767318424955,0.0039975,3000.2,2999.4,0.77959551]
[1767318426067,0.0039975,3000.2,2999.6,0.77633865]
[1767318426466,0.14418765,3000.9,3000.0,0.77633865]
[1767318427263,0.14418765,3000.9,2999.8,0.77633865]
[1767318427462,0.0049975,3000.7,2999.8,0.77633865]
[1767318427763,0.0049975,3000.7,2999.6,0.77633865]
[1767318432571,0.14918515,3000.7,2999.6,0.77633865]
[1767318432770,0.14918515,3000.7,2999.5,5.1529975]
[1767318434385,0.14918515,3000.7,2999.6,0.77633865]
[1767318435100,0.14918515,3000.7,2999.5,5.1529975]
[1767318435390,0.14918515,3000.7,2999.6,0.77633865]
[1767318437989,0.14418765,3000.6,2999.5,0.0049975]
[1767318438382,0.14418765,3000.6,2999.5,0.78133615]
[1767318438583,0.14418765,3000.6,2999.5,0.0049975]
[1767318442581,0.14318765,3000.6,2999.5,0.0049975]
[1767318447594,0.14218765,3000.6,2999.5,0.0049975]
[1767318453997,0.14118765,3000.6,2999.5,0.0049975]
[1767318457707,0.14018765,3000.6,2999.5,0.0049975]
[1767318461193,0.13918765,3000.6,2999.5,0.0049975]
[1767318466204,0.13918765,3000.6,2999.6,0.77683807]
[1767318467900,0.13818765,3000.6,2999.6,0.77683807]
[1767318468698,0.13818765,3000.6,2999.5,0.0049975]
[1767318478817,0.13718765,3000.6,2999.5,0.0049975]
[1767318484709,0.0049975,3000.7,2999.5,0.0049975]
[1767318487219,0.14169709,3001.0,2999.8,0.77683807]
[1767318488618,0.14169709,3001.0,2999.5,0.0049975]
[1767318496131,0.14169709,3001.0,2999.8,0.77683807]
[1767318498534,0.14169709,3001.0,3000.0,0.77658664]
[1767318499230,0.14169709,3001.0,3000.3,0.77658664]
[1767318499432,0.14169709,3001.0,3000.5,0.77658664]
[1767318499628,0.13170559,3001.0,3000.5,0.77658664]
[1767318500639,0.16678,3001.7,3000.7,0.77658664]
[1767318500834,1.07142093,3001.6,3000.7,0.77658664]
[1767318501134,0.16678,3001.7,3000.7,0.77658664]
[1767318502444,0.14169709,3001.6,3000.7,0.77658664]
[1767318505837,0.14169709,3001.6,3000.5,0.77658664]
[1767318515047,0.14169709,3001.6,3000.3,0.77658664]
[1767318515547,0.91828373,3001.6,3000.3,0.77658664]
[1767318517654,0.14169709,3001.6,3000.5,0.77658664]
[1767318517951,0.77658664,3001.8,3000.5,0.77658664]
[1767318518142,0.13567563,3001.9,3000.9,0.77658664]
[1767318518341,0.13567563,3001.9,3001.1,0.0049975]
[1767318518950,0.13567563,3001.9,3001.1,0.78158414]
[1767318519247,5.0927272,3002.2,3001.1,0.78158414]
[1767318519552,0.3899772,3002.2,3001.1,0.78158414]
[1767318519753,4.9269772,3002.2,3001.1,0.78158414]
[1767318528859,0.3899772,3002.2,3001.3,0.77658664]
[1767318529561,0.3899772,3002.2,3001.1,0.0049975]
[1767318533963,1.30989105,3002.2,3001.1,0.0049975]
[1767318534162,0.77658664,3002.0,3001.1,0.0049975]
[1767318535369,1.30989105,3002.2,3001.1,0.0049975]
[1767318536871,1.30889105,3002.2,3001.1,0.0049975]
[1767318537981,0.53230441,3002.2,3001.1,0.78158414]
[1767318541185,0.53230441,3002.2,3001.1,0.0049975]
[1767318543083,0.14332721,3002.1,3001.1,0.0049975]
[1767318543285,0.14332721,3001.9,3001.1,0.0049975]
[1767318544686,1.16556384,3002.2,3001.1,0.0049975]
[1767318548787,0.3889772,3002.2,3001.1,0.0049975]
[1767318552894,0.3879772,3002.2,3001.1,0.0049975]
[1767318554492,1.30789105,3002.2,3001.1,0.0049975]
[1767318560404,1.30689105,3002.2,3001.1,0.0049975]
[1767318560708,0.53030441,3002.2,3001.1,0.0049975]
[1767318561398,0.53347978,3002.2,3001.1,0.0049975]
[1767318583129,0.39015257,3002.2,3001.1,0.13900366]
[1767318583337,0.39015257,3002.2,3001.2,0.77616484]
[1767318584330,0.00317537,3002.2,3001.2,0.77616484]
[1767318587132,0.00317537,3002.2,3001.2,0.910171]
[1767318587835,0.0010368,3002.2,3001.3,0.13400616]
[1767318588139,0.13864912,3003.0,3001.6,0.910171]
[1767318588439,0.13864912,3003.5,3001.7,0.13400616]
[1767318588640,0.13864912,3003.3,3001.7,0.13400616]
[1767318589140,0.14242825,3003.3,3001.7,0.13824468]
[1767318589742,0.14242825,3003.3,3001.7,0.00423852]
[1767318589743,0.13864912,3003.1,3001.7,0.00423852]
[1767318601829,0.00377913,3003.3,3001.8,0.14169]
[1767318602028,0.00377913,3003.3,3002.1,0.91785484]
[1767318602238,0.14535367,3003.3,3001.7,0.14592852]
[1767318604945,0.14535367,3003.3,3002.0,0.91785484]
[1767318605142,0.00377913,3003.3,3002.1,0.14169]
[1767318606246,0.14535367,3003.3,3001.7,0.00423852]
[1767318608245,0.14535367,3003.3,3001.7,0.14592852]
[1767318609845,0.14535367,3003.3,3002.0,0.77616484]
[1767318610044,0.00377913,3003.3,3002.1,0.14169]
[1767318611041,0.00377913,3003.3,3002.0,0.77616484]
[1767318611247,0.00377913,3003.3,3001.7,0.14592852]
[1767318611447,0.14535367,3003.3,3001.7,0.14592852]
[1767318613450,0.14535367,3003.3,3002.0,0.77616484]
[1767318613955,0.14435367,3003.3,3002.0,0.77616484]
[1767318615251,0.00277913,3003.3,3002.1,0.14169]
[1767318620551,0.00277913,3003.3,3002.7,0.77522662]
[1767318620749,0.00277913,3003.3,3002.7,0.78022412]
[1767318621152,0.00277913,3003.3,3002.7,0.0049975]
[1767318644266,0.00277913,3003.3,3002.8,0.77522662]
[1767318644570,0.30806342,3004.1,3003.0,0.77522662]
[1767318644759,1.07254479,3004.0,3003.0,0.77522662]
[1767318644958,1.07254479,3003.9,3003.0,0.77522662]
[1767318645159,0.30806342,3004.1,3002.8,0.9156718]
[1767318645358,1.0722737,3004.0,3002.8,0.9156718]
[1767318645568,1.0722737,3003.9,3002.8,0.9156718]
[1767318645769,0.31042196,3004.1,3002.8,0.9156718]
[1767318645964,1.07230152,3004.0,3002.8,0.9156718]
[1767318646271,1.07230152,3003.9,3002.8,0.9156718]
[1767318646467,0.31042196,3004.1,3002.8,0.9156718]
[1767318646665,1.07206887,3004.0,3002.8,0.9156718]
[1767318646966,1.07206887,3003.9,3002.8,0.9156718]
[1767318647161,1.08564858,3004.1,3002.8,0.9156718]
[1767318647368,1.07190521,3004.0,3002.8,0.9156718]
[1767318647566,1.08564858,3004.1,3002.8,0.9156718]
[1767318647766,1.07190513,3004.0,3002.8,0.9156718]
[1767318647969,1.08564858,3004.1,3002.8,0.9156718]
[1767318648272,1.07189708,3004.0,3002.8,0.9156718]
[1767318648472,1.08564858,3004.1,3002.8,0.9156718]
[1767318648674,1.07177202,3004.0,3002.8,0.9156718]
[1767318648973,1.08564858,3004.1,3002.8,0.9156718]
[1767318649161,1.07177755,3004.0,3002.8,0.9156718]
[1767318649364,1.08564858,3004.1,3002.8,0.9156718]
[1767318649562,1.07167422,3004.0,3002.8,0.9156718]